bitfinex/quotes_SOLUSD_20250514
["timestamp","ask_amount","ask_price","bid_price","bid_amount"]
[1747218510033,5.52577775,180.97,180.89,26.0]
[1747218510241,5.52577775,180.97,180.93,8.47218387]
[1747218512642,5.52577775,180.97,180.95,8.47218387]
[1747218512844,5.52577775,180.97,180.94,8.47218387]
[1747218513949,25.20486187,181.0,180.96,8.47218387]
[1747218514160,25.20486187,181.0,180.97,8.47218387]
[1747218514550,25.20486187,181.0,180.98,8.47218387]
[1747218515459,19.68,181.0,180.99,8.47218387]
[1747218518957,25.20333609,181.05,180.99,8.47218387]
[1747218519260,25.20333609,181.05,181.03,8.47218387]
[1747218520557,25.20333609,181.05,181.02,8.47218387]
[1747218520759,39.01167632,181.05,181.01,8.47218387]
[1747218521333,39.01167632,181.05,181.02,8.47218387]
[1747218521546,25.20333609,181.05,181.02,8.47218387]
[1747218521752,25.20333609,181.05,181.03,8.47218387]
[1747218522531,25.20333609,181.05,181.04,8.47218387]
[1747218523554,25.20333609,181.05,181.03,8.47218387]
[1747218524278,19.68,181.05,181.04,8.47218387]
[1747218525866,19.64,181.1,181.04,8.47218387]
[1747218526098,226.5,181.17,181.09,8.47218387]
[1747218526364,5.51906838,181.19,181.16,8.47218387]
[1747218526566,5.51906838,181.19,181.12,26.0]
[1747218526567,5.51906838,181.19,181.17,8.47218387]
[1747218526735,5.51906838,181.19,181.08,10.11798387]
[1747218526736,5.51906838,181.19,181.11,30.34791868]
[1747218526935,5.51906838,181.19,181.17,8.47218387]
[1747218527455,8.47218387,181.23,181.18,8.47218387]
[1747218527754,8.47218387,181.22,181.17,8.47218387]
[1747218527944,8.47218387,181.22,181.14,26.0]
[1747218528146,18.64964886,181.24,181.17,8.47218387]
[1747218528342,13.99003411,181.23,181.18,8.47218387]
[1747218528537,8.47218387,181.22,181.17,8.47218387]
[1747218528934,8.47218387,181.22,181.11,4.34791868]
[1747218528935,8.47218387,181.2,181.11,30.34791868]
[1747218529139,8.47218387,181.18,181.14,8.47218387]
[1747218529361,8.47218387,181.18,181.09,5.52200893]
[1747218529362,19.64,181.18,181.09,5.52200893]
[1747218529550,19.64,181.18,181.15,8.47218387]
[1747218530457,5.51967765,181.17,181.14,8.47218387]
[1747218531166,5.51967765,181.17,181.13,8.47218387]
[1747218531367,5.51967765,181.17,181.08,10.11798387]
[1747218531368,27.79105564,181.17,181.08,1.6458]
[1747218531582,27.79105564,181.17,181.12,8.47218387]
[1747218531745,27.79105564,181.17,181.1,26.0]
[1747218531946,27.79105564,181.17,181.12,8.47218387]
[1747218532556,27.79105564,181.17,181.11,8.47218387]
[1747218532557,8.47218387,181.16,181.11,8.47218387]
[1747218532749,8.47218387,181.15,181.1,8.47218387]
[1747218532943,19.31887177,181.17,181.08,8.47218387]
[1747218533153,19.31887177,181.17,181.13,8.47218387]
[1747218533365,27.79105564,181.17,181.12,8.47218387]
[1747218534569,19.31887177,181.17,181.08,26.0]
[1747218534870,8.47218387,181.16,181.11,8.47218387]
[1747218535167,19.31887177,181.17,181.12,8.47218387]
[1747218535373,19.31887177,181.17,181.13,8.47218387]
[1747218535569,27.79105564,181.17,181.12,8.47218387]
[1747218536153,19.31887177,181.17,181.08,39.99449309]
[1747218536478,27.79105564,181.17,181.12,8.47218387]
[1747218537156,8.47218387,181.16,181.11,8.47218387]
[1747218537352,8.47218387,181.12,181.08,26.0]
[1747218537545,8.47218387,181.12,181.08,8.47218387]
[1747218537752,8.47218387,181.12,181.05,4.43235423]
[1747218537954,8.47218387,181.12,181.07,8.47218387]
[1747218538256,5.52120141,181.12,181.08,8.47218387]
[1747218538573,27.79638881,181.12,181.05,30.36430759]
[1747218538777,27.79638881,181.12,181.05,26.0]
[1747218539078,28.11218387,181.11,181.05,26.0]
[1747218539274,28.11218387,181.11,181.06,8.47218387]
[1747218539578,8.47218387,181.1,181.05,8.47218387]
[1747218540269,5.52242102,181.08,181.04,8.47218387]
[1747218540467,5.52242102,181.08,181.02,7.24716877]
[1747218540679,5.52242102,181.08,181.04,8.47218387]
[1747218540975,5.52242102,181.08,181.03,26.0]
[1747218540976,13.99460489,181.08,181.0,1.5201]
[1747218541272,27.80065746,181.08,181.03,8.47218387]
[1747218541974,8.47218387,181.07,181.03,8.47218387]
[1747218542472,5.52303103,181.06,181.02,26.0]
[1747218542775,8.47218387,181.03,180.98,8.47218387]
[1747218543149,19.64,181.04,180.97,8.47218387]
[1747218543150,8.47218387,181.02,180.97,8.47218387]
[1747218543381,8.47218387,181.01,180.95,26.0]
[1747218543681,26.80764886,181.03,180.95,8.47218387]
[1747218543846,8.47218387,181.0,180.95,8.47218387]
[1747218544374,13.997351,180.99,180.94,26.0]
[1747218544583,8.47218387,180.98,180.89,7.04674028]
[1747218544796,13.997351,180.99,180.94,8.47218387]
[1747218545755,8.47218387,180.98,180.92,26.0]
[1747218545958,8.47218387,180.98,180.93,8.47218387]
[1747218546884,19.64,180.97,180.93,8.47218387]
[1747218547187,19.64,180.97,180.94,8.47218387]
[1747218547983,5.52608311,180.96,180.94,8.47218387]
[1747218549873,5.52608311,180.96,180.93,8.47218387]
[1747218550985,5.52608311,180.96,180.94,8.47218387]
[1747218551668,5.52608311,180.96,180.93,8.47218387]
[1747218553772,5.52608311,180.96,180.94,8.47218387]
[1747218554160,5.52608311,180.96,180.93,8.47218387]
[1747218554361,5.52608311,180.96,180.9,26.0]
[1747218554569,5.52608311,180.96,180.93,8.47218387]
[1747218555094,5.52608311,180.96,180.9,26.0]
[1747218555095,19.64,180.97,180.95,8.47218387]
[1747218555291,19.64,180.97,180.96,8.47218387]
[1747218555465,25.16577775,180.97,180.95,8.47218387]
[1747218556684,25.16577775,180.97,180.94,8.47218387]
[1747218558070,25.16577775,180.97,180.91,26.0]
[1747218558270,25.16577775,180.97,180.94,8.47218387]
[1747218559399,47.452406,180.97,180.91,26.0]
[1747218559602,47.452406,180.97,180.92,8.47218387]
[1747218559783,47.452406,180.97,180.93,8.47218387]
[1747218561469,8.47218387,180.96,180.89,1.5186]
[1747218561674,38.98022213,180.97,180.89,8.47218387]
[1747218561675,8.47218387,180.93,180.89,8.47218387]
[1747218561989,8.47218387,180.93,180.87,26.0]
[1747218562181,8.47218387,180.92,180.88,8.47218387]
[1747218562366,8.47218387,180.93,180.89,8.47218387]
[1747218562878,5.52730488,180.92,180.89,8.47218387]
[1747218563578,13.99948875,180.92,180.88,8.47218387]
[1747218563782,13.99948875,180.92,180.87,26.0]
[1747218563981,13.99948875,180.92,180.88,8.47218387]
[1747218564480,5.52730488,180.92,180.88,8.47218387]
[1747218564894,5.52730488,180.92,180.86,4.34840265]
[1747218564895,8.47218387,180.91,180.86,8.47218387]
[1747218565270,8.47218387,180.91,180.85,26.0]
[1747218565598,8.47218387,180.91,180.86,8.47218387]
[1747218566986,8.47218387,180.89,180.8,11.98518491]
[1747218567185,8.47218387,180.88,180.84,8.47218387]
[1747218567994,38.9877059,180.9,180.82,34.47218387]
[1747218568180,8.47218387,180.87,180.83,8.47218387]
[1747218568699,8.47218387,180.87,180.81,26.0]
[1747218568900,8.47218387,180.87,180.82,34.47218387]
[1747218569072,5.52913856,180.86,180.82,34.47218387]
[1747218569573,5.52913856,180.86,180.83,8.47218387]
[1747218570674,5.52913856,180.86,180.84,8.47218387]
[1747218570882,5.52822157,180.89,180.85,8.47218387]
[1747218571188,5.52822157,180.89,180.86,8.47218387]
[1747218572390,19.64,180.9,180.87,8.47218387]
[1747218572391,25.16791905,180.9,180.87,8.47218387]
[1747218572595,25.16791905,180.9,180.84,5.52946531]
[1747218572804,25.16791905,180.9,180.87,8.47218387]
[1747218573700,25.16791905,180.9,180.83,1.5324]
[1747218573701,33.64010292,180.9,180.86,8.47218387]
[1747218573997,33.64010292,180.9,180.81,26.0]
[1747218573998,8.47218387,180.88,180.81,26.0]
[1747218574199,8.47218387,180.89,180.84,8.47218387]
[1747218574593,8.47218387,180.88,180.8,28.7242354]
[1747218574906,8.47218387,180.87,180.8,26.0]
[1747218575093,8.47218387,180.87,180.82,8.47218387]
[1747218575596,5.52913856,180.86,180.81,26.0]
[1747218575904,5.52913856,180.86,180.82,8.47218387]
[1747218576394,5.52913856,180.86,180.85,8.47218387]
[1747218577191,5.52913856,180.86,180.84,8.47218387]
[1747218577395,5.52913856,180.86,180.81,26.0]
[1747218577603,5.52913856,180.86,180.83,8.47218387]
[1747218577808,5.52883286,180.87,180.84,8.47218387]
[1747218577990,5.52883286,180.87,180.85,8.47218387]
[1747218578871,5.52883286,180.87,180.81,26.0]
[1747218579107,5.52883286,180.87,180.84,8.47218387]
[1747218579694,5.5285272,180.88,180.84,8.47218387]
[1747218580011,27.82202907,180.88,180.83,8.47218387]
[1747218580188,8.47218387,180.87,180.82,8.47218387]
[1747218580806,8.47218387,180.87,180.81,26.0]
[1747218581286,8.47218387,180.87,180.82,8.47218387]
[1747218581895,5.52913856,180.86,180.82,8.47218387]
[1747218583203,5.52913856,180.86,180.83,8.47218387]
[1747218583378,5.52913856,180.86,180.81,26.0]
[1747218583579,5.52913856,180.86,180.82,8.47218387]
[1747218584183,8.47218387,180.85,180.77,4.49702388]
[1747218584386,8.47218387,180.84,180.79,8.47218387]
[1747218584603,8.47218387,180.84,180.78,26.0]
[1747218584851,8.47218387,180.83,180.78,8.47218387]
[1747218585101,8.47218387,180.84,180.79,8.47218387]
[1747218585397,8.47218387,180.84,180.77,26.0]
[1747218585398,8.47218387,180.82,180.78,8.47218387]
[1747218586006,5.5285272,180.88,180.81,8.47218387]
[1747218586302,5.5285272,180.88,180.84,8.47218387]
[1747218587182,5.52791597,180.9,180.86,8.47218387]
[1747218591014,8.47218387,180.89,180.84,8.47218387]
[1747218591309,8.47218387,180.88,180.83,8.47218387]
[1747218591509,8.47218387,180.87,180.82,8.47218387]
[1747218591891,8.47218387,180.88,180.82,8.47218387]
[1747218592105,8.47218387,180.88,180.81,26.0]
[1747218592307,8.47218387,180.87,180.82,8.47218387]
[1747218592513,8.47218387,180.88,180.83,8.47218387]
[1747218592822,5.52883286,180.87,180.83,8.47218387]
[1747218592989,14.00101673,180.87,180.82,8.47218387]
[1747218593515,27.82309888,180.87,180.82,8.47218387]
[1747218593687,8.47218387,180.86,180.81,8.47218387]
[1747218593883,8.47218387,180.86,180.76,12.99606517]
[1747218594191,28.09218387,180.85,180.8,8.47218387]
[1747218594913,8.47218387,180.84,180.79,8.47218387]
[1747218595119,27.82630905,180.84,180.79,8.47218387]
[1747218595296,8.47218387,180.83,180.75,2.78318403]
[1747218595503,8.47218387,180.81,180.72,14.0055595]
[1747218595828,8.47218387,180.81,180.72,34.24049344]
[1747218595987,8.47218387,180.81,180.76,8.47218387]
[1747218596516,5.53097345,180.8,180.76,8.47218387]
[1747218597117,14.00315732,180.8,180.72,2.70711781]
[1747218597415,14.00315732,180.8,180.7,1.6567]
[1747218597416,8.47218387,180.78,180.73,8.47218387]
[1747218598422,5.53189135,180.77,180.73,8.47218387]
[1747218599011,5.53165569,180.78,180.75,8.47218387]
[1747218599214,5.53066755,180.81,180.77,8.47218387]
[1747218599513,5.53066755,180.81,180.78,8.47218387]
[1747218600035,5.53066755,180.81,180.72,8.47218387]
[1747218600322,5.53066755,180.81,180.77,8.47218387]
[1747218600489,5.53066755,180.81,180.78,8.47218387]
[1747218600891,5.52975005,180.84,180.8,8.47218387]
[1747218601118,5.52975005,180.84,180.82,8.47218387]
[1747218601290,25.14954623,180.85,180.83,8.47218387]
[1747218601484,25.14954623,180.85,180.82,8.47218387]
[1747218601690,33.6217301,180.85,180.8,8.47218387]
[1747218601891,25.14954623,180.85,180.82,8.47218387]
[1747218602321,25.14954623,180.85,180.83,8.47218387]
[1747218602524,25.14954623,180.85,180.82,8.47218387]
[1747218603423,25.14954623,180.85,180.83,13.56213943]
[1747218603829,19.62,180.85,180.83,13.56213943]
[1747218604120,25.14947154,180.85,180.83,13.56213943]
[1747218604722,25.14947154,180.85,180.82,13.56213943]
[1747218605215,25.14947154,180.85,180.83,13.56213943]
[1747218605720,25.14947154,180.85,180.82,13.56213943]
[1747218606525,25.14947154,180.85,180.81,13.56213943]
[1747218606714,25.14947154,180.85,180.79,13.56213943]
[1747218606715,13.56213943,180.84,180.79,13.56213943]
[1747218606906,25.14947154,180.85,180.79,13.56213943]
[1747218607110,13.56213943,180.84,180.79,13.56213943]
[1747218607702,5.53005585,180.83,180.79,13.56213943]
[1747218608031,13.56213943,180.82,180.76,26.0]
[1747218608333,13.56213943,180.82,180.77,13.56213943]
[1747218608902,5.53066755,180.81,180.78,13.56213943]
[1747218609826,5.53066755,180.81,180.76,13.56213943]
[1747218610134,5.53066755,180.81,180.77,13.56213943]
[1747218612156,19.09280698,180.81,180.76,13.56213943]
[1747218612447,13.56213943,180.79,180.74,13.56213943]
[1747218612627,13.56213943,180.78,180.73,13.56213943]
[1747218612827,13.56213943,180.76,180.71,13.56213943]
[1747218613024,13.56213943,180.76,180.7,2.79412289]
[1747218613248,13.56213943,180.76,180.71,39.56213943]
[1747218613453,19.62,180.78,180.72,13.56213943]
[1747218613760,5.53219738,180.76,180.73,13.56213943]
[1747218613959,5.53219738,180.76,180.71,26.0]
[1747218614257,5.53219738,180.76,180.72,13.56213943]
[1747218614760,13.56213943,180.75,180.71,26.0]
[1747218614927,13.56213943,180.75,180.7,39.56213943]
[1747218615132,13.56213943,180.72,180.64,5.53586005]
[1747218615343,13.56213943,180.72,180.63,15.20323943]
[1747218615344,33.84328829,180.74,180.63,15.20323943]
[1747218615546,33.84328829,180.74,180.69,13.56213943]
[1747218616133,13.56213943,180.73,180.66,26.0]
[1747218616337,18.64964886,180.72,180.68,13.56213943]
[1747218616551,19.6,180.71,180.67,13.56213943]
[1747218616725,5.53403431,180.7,180.67,13.56213943]
[1747218617127,19.6,180.71,180.64,26.0]
[1747218617360,19.6,180.71,180.7,13.56213943]
[1747218617871,19.6,180.75,180.7,13.56213943]
[1747218618043,19.6,180.75,180.74,13.56213943]
[1747218618437,19.6,180.75,180.73,13.56213943]
[1747218618659,25.13258498,180.75,180.71,13.56213943]
[1747218618863,32.21178829,180.74,180.64,2.77126098]
[1747218619064,18.64964886,180.74,180.69,13.56213943]
[1747218619255,18.64964886,180.74,180.7,13.56213943]
[1747218619869,32.21178829,180.74,180.7,13.56213943]
[1747218620049,32.21178829,180.74,180.66,26.0]
[1747218620254,18.64964886,180.72,180.68,13.56213943]
[1747218620637,5.53372807,180.71,180.7,13.56213943]
[1747218620836,19.6,180.75,180.7,13.56213943]
[1747218620837,5.53280956,180.74,180.7,13.56213943]
[1747218621063,5.53280956,180.74,180.73,13.56213943]
[1747218621844,5.53280956,180.74,180.72,13.56213943]
[1747218623066,19.36483346,180.74,180.71,13.56213943]
[1747218623252,18.64964886,180.73,180.66,26.0]
[1747218623452,18.64964886,180.73,180.7,13.56213943]
[1747218624066,18.64964886,180.73,180.69,13.56213943]
[1747218624250,32.21178829,180.73,180.68,13.56213943]
[1747218624457,38.36498829,180.73,180.68,13.56213943]
[1747218625160,18.64964886,180.71,180.68,13.56213943]
[1747218626158,5.53403431,180.7,180.68,13.56213943]
[1747218626667,19.6,180.69,180.66,13.56213943]
[1747218627074,19.6,180.69,180.67,13.56213943]
[1747218627275,19.6,180.69,180.68,13.56213943]
[1747218628267,25.13434058,180.69,180.68,13.56213943]
[1747218630876,5.53372807,180.71,180.68,13.56213943]
[1747218631083,5.53372807,180.71,180.7,13.56213943]
[1747218631874,25.13348616,180.72,180.7,13.56213943]
[1747218632065,25.13348616,180.72,180.71,13.56213943]
[1747218634154,25.13348616,180.72,180.68,26.0]
[1747218634359,25.13348616,180.72,180.7,13.56213943]
[1747218635472,38.96704083,180.72,180.66,26.0]
[1747218635686,38.96704083,180.72,180.7,13.56213943]
[1747218635851,38.96704083,180.72,180.66,26.0]
[1747218636051,38.96704083,180.72,180.69,13.56213943]
[1747218636554,18.64964886,180.71,180.66,26.0]
[1747218636754,18.64964886,180.71,180.69,13.56213943]
[1747218637154,0.28432314,180.65,180.56,13.56213943]
[1747218637353,38.24964886,180.64,180.61,13.56213943]
[1747218637558,38.24964886,180.64,180.57,26.0]
[1747218637559,19.6,180.64,180.62,13.56213943]
[1747218637780,19.6,180.64,180.61,13.56213943]
[1747218637969,18.64964886,180.63,180.61,13.56213943]
[1747218638290,18.64964886,180.63,180.54,13.56213943]
[1747218638448,18.64964886,180.63,180.58,13.56213943]
[1747218638650,32.21178829,180.63,180.58,13.56213943]
[1747218638868,19.6,180.64,180.61,13.56213943]
[1747218639180,19.6,180.64,180.62,13.56213943]
[1747218639588,5.53617892,180.63,180.6,13.56213943]
[1747218639759,24.18582778,180.63,180.6,13.56213943]
[1747218640385,24.18582778,180.63,180.59,13.56213943]
[1747218640884,24.18582778,180.63,180.6,13.56213943]
[1747218641654,24.18582778,180.63,180.52,26.0]
[1747218641877,24.18582778,180.63,180.6,13.56213943]
[1747218642178,5.53617892,180.63,180.6,13.56213943]
[1747218642382,5.53617892,180.63,180.62,13.56213943]
[1747218643162,5.53617892,180.63,180.61,13.56213943]
[1747218643776,5.53617892,180.63,180.62,13.56213943]
[1747218644178,5.53617892,180.63,180.61,13.56213943]
[1747218644380,19.6,180.64,180.62,13.56213943]
[1747218644559,19.58,180.65,180.63,13.56213943]
[1747218644761,19.58,180.65,180.64,13.56213943]
[1747218648273,212.71469448,180.68,180.64,13.56213943]
[1747218648469,207.18,180.68,180.67,13.56213943]
[1747218648686,207.18,180.68,180.66,13.56213943]
[1747218648687,212.71468421,180.68,180.66,13.56213943]
[1747218648893,212.71468421,180.68,180.61,26.0]
[1747218649112,18.64964886,180.67,180.61,26.0]
[1747218649286,32.21178829,180.67,180.62,13.56213943]
[1747218649488,18.64964886,180.67,180.64,13.56213943]
[1747218650214,5.5352596,180.66,180.64,13.56213943]
[1747218651121,5.53500192,180.67,180.65,13.56213943]
[1747218651294,5.53500192,180.67,180.66,13.56213943]
[1747218651913,5.53500192,180.67,180.65,13.56213943]
[1747218652612,5.53500192,180.67,180.62,26.0]
[1747218652816,24.18465078,180.67,180.63,13.56213943]
[1747218653611,24.18465078,180.67,180.58,5.53766134]
[1747218653914,32.21178829,180.66,180.61,13.56213943]
[1747218654321,5.53556601,180.65,180.61,13.56213943]
[1747218655619,5.53556601,180.65,180.62,13.56213943]
[1747218656793,5.53556601,180.65,180.63,13.56213943]
[1747218659417,5.53556601,180.65,180.62,8.49578327]
[1747218662142,5.53556601,180.65,180.61,8.49578327]
[1747218662414,27.14543213,180.62,180.57,8.49578327]
[1747218662718,19.58,180.61,180.57,8.49578327]
[1747218662918,19.58,180.61,180.58,8.49578327]
[1747218663433,19.58,180.61,180.53,1.6218]
[1747218663434,5.53709856,180.6,180.53,1.6218]
[1747218663628,18.64964886,180.59,180.53,1.6218]
[1747218663835,18.64964886,180.59,180.55,8.49578327]
[1747218664044,18.64964886,180.59,180.56,8.49578327]
[1747218664334,18.64964886,180.59,180.55,8.49578327]
[1747218664928,5.53771181,180.58,180.55,8.49578327]
[1747218667123,5.53740517,180.59,180.55,8.49578327]
[1747218667931,5.53740517,180.59,180.57,8.49578327]
[1747218669000,5.53709856,180.6,180.57,8.49578327]
[1747218669927,5.53709856,180.6,180.58,8.49578327]
[1747218671027,27.67783005,180.65,180.59,8.49578327]
[1747218671028,5.53556601,180.65,180.59,8.49578327]
[1747218671239,5.53556601,180.65,180.64,8.49578327]
[1747218671403,5.53533812,180.66,180.64,8.49578327]
[1747218671603,5.53533812,180.66,180.65,8.49578327]
[1747218672420,5.53533812,180.66,180.59,26.0]
[1747218672617,5.53533812,180.66,180.65,8.49578327]
[1747218675614,5.53533812,180.66,180.64,8.49578327]
[1747218676708,5.53533812,180.66,180.65,8.49578327]
[1747218678915,5.53533812,180.66,180.59,26.0]
[1747218679134,5.53533812,180.66,180.64,8.49578327]
[1747218679438,5.53533812,180.66,180.65,8.49578327]
[1747218680510,19.6,180.67,180.65,8.49578327]
[1747218680712,19.6,180.67,180.66,8.49578327]
[1747218681238,25.13495322,180.67,180.62,26.0]
[1747218681441,25.13495322,180.67,180.65,8.49578327]
[1747218681646,25.13495322,180.67,180.61,26.0]
[1747218681813,25.13495322,180.67,180.65,8.49578327]
[1747218682238,38.92632086,180.73,180.66,26.0]
[1747218682542,18.64964886,180.72,180.69,8.49578327]
[1747218682717,27.14543213,180.72,180.67,8.49578327]
[1747218683446,18.64964886,180.72,180.66,26.0]
[1747218683743,27.14543213,180.72,180.67,8.49578327]
[1747218684225,18.64964886,180.7,180.67,8.49578327]
[1747218684822,18.64964886,180.7,180.65,26.0]
[1747218684823,18.64964886,180.7,180.68,8.49578327]
[1747218685430,18.64964886,180.7,180.66,8.49578327]
[1747218685720,27.14543213,180.7,180.65,8.49578327]
[1747218685937,18.64964886,180.7,180.67,8.49578327]
[1747218686121,5.53372807,180.71,180.69,8.49578327]
[1747218686745,5.53372807,180.71,180.68,8.49578327]
[1747218687342,5.53372807,180.71,180.69,8.49578327]
[1747218687626,5.53372807,180.71,180.7,8.49578327]
[1747218687845,5.53372807,180.71,180.66,26.0]
[1747218688026,5.53372807,180.71,180.68,8.49578327]
[1747218688726,5.53372807,180.71,180.67,8.49578327]
[1747218689137,18.64964886,180.7,180.66,8.49578327]
[1747218689343,18.64964886,180.7,180.54,19.09578327]
[1747218689344,27.14543213,180.7,180.6,7.16468001]
[1747218689536,27.14543213,180.7,180.65,8.49578327]
[1747218689735,18.64964886,180.7,180.66,8.49578327]
[1747218690028,18.64964886,180.7,180.67,8.49578327]
[1747218690647,5.53434058,180.69,180.67,8.49578327]
[1747218690950,5.53434058,180.69,180.66,8.49578327]
[1747218691754,5.53434058,180.69,180.63,26.0]
[1747218691953,27.14543213,180.68,180.63,8.49578327]
[1747218692274,18.64964886,180.68,180.66,8.49578327]
[1747218692735,5.53495322,180.67,180.66,8.49578327]
[1747218693757,5.53372807,180.71,180.66,8.49578327]
[1747218693956,5.53372807,180.71,180.63,8.49578327]
[1747218693957,5.53372807,180.71,180.69,8.49578327]
[1747218694159,5.53372807,180.71,180.7,8.49578327]
[1747218694832,25.09351667,180.72,180.7,8.49578327]
[1747218695028,25.09351667,180.72,180.66,5.53515318]
[1747218695029,25.09351667,180.72,180.71,8.49578327]
[1747218695741,25.09351667,180.72,180.7,8.49578327]
[1747218696253,25.09351667,180.72,180.71,8.49578327]
[1747218696760,18.64964886,180.71,180.59,5.8216307]
[1747218696965,8.49578327,180.66,180.58,6.5277]
[1747218697133,18.933972,180.71,180.56,1.6479]
[1747218697134,8.49578327,180.65,180.6,8.49578327]
[1747218697333,28.05578327,180.65,180.6,8.49578327]
[1747218698057,28.05578327,180.65,180.6,34.49578327]
[1747218698437,27.14543213,180.64,180.59,8.49578327]
[1747218698757,18.64964886,180.62,180.54,6.1381]
[1747218698952,18.64964886,180.62,180.58,8.49578327]
[1747218700160,5.53679198,180.61,180.58,8.49578327]
[1747218700646,5.53679198,180.61,180.59,8.49578327]
[1747218700840,5.53617892,180.63,180.6,8.49578327]
[1747218701745,14.03196219,180.63,180.57,26.0]
[1747218701950,27.14543213,180.62,180.57,34.49578327]
[1747218702252,5.53679198,180.61,180.57,26.0]
[1747218702551,5.53679198,180.61,180.58,8.49578327]
[1747218702941,5.53679198,180.61,180.57,34.49578327]
[1747218703143,5.53679198,180.61,180.58,8.49578327]
[1747218703843,5.53679198,180.61,180.53,26.0]
[1747218704046,5.53679198,180.61,180.57,8.49578327]
[1747218704649,18.64964886,180.6,180.56,8.49578327]
[1747218705155,27.14543213,180.6,180.55,8.49578327]
[1747218705528,18.64964886,180.58,180.54,8.49578327]
[1747218705728,19.56,180.57,180.54,8.49578327]
[1747218705956,19.56,180.57,180.48,5.54076069]
[1747218706146,19.56,180.57,180.54,8.49578327]
[1747218706355,5.53832521,180.56,180.54,8.49578327]
[1747218706933,25.09802423,180.57,180.55,8.49578327]
[1747218707359,25.09802423,180.57,180.51,26.0]
[1747218707570,25.09802423,180.57,180.55,8.49578327]
[1747218708160,19.56,180.57,180.56,8.49578327]
[1747218708554,18.64964886,180.62,180.56,8.49578327]
[1747218708555,25.07656962,180.62,180.56,8.49578327]
[1747218708858,25.07656962,180.62,180.6,8.49578327]
[1747218709052,25.07656962,180.62,180.54,36.04498327]
[1747218709272,18.64964886,180.61,180.57,8.49578327]
[1747218709566,18.64964886,180.61,180.54,1.5492]
[1747218709775,8.49578327,180.59,180.54,8.49578327]
[1747218710433,5.53771181,180.58,180.54,8.49578327]
[1747218710633,8.49578327,180.56,180.51,8.49578327]
[1747218710833,19.54,180.55,180.51,8.49578327]
[1747218711639,5.53893873,180.54,180.45,10.04498327]
[1747218711837,5.53893873,180.54,180.53,8.49578327]
[1747218712039,19.54,180.55,180.53,8.49578327]
[1747218712339,25.07709856,180.6,180.54,8.49578327]
[1747218712532,25.07709856,180.6,180.53,26.0]
[1747218712757,18.64964886,180.59,180.55,8.49578327]
[1747218712956,18.64964886,180.59,180.53,26.0]
[1747218712957,27.14543213,180.59,180.54,8.49578327]
[1747218713157,27.14543213,180.59,180.53,26.0]
[1747218713341,8.49578327,180.58,180.54,8.49578327]
[1747218713539,27.14543213,180.59,180.54,8.49578327]
[1747218713856,19.38199135,180.58,180.54,8.49578327]
[1747218714169,27.87777462,180.58,180.5,26.0]
[1747218714354,27.14543213,180.57,180.53,8.49578327]
[1747218714558,18.64964886,180.57,180.55,8.49578327]
[1747218714763,19.38199135,180.58,180.56,8.49578327]
[1747218714764,5.53771181,180.58,180.56,8.49578327]
[1747218715065,5.53771181,180.58,180.57,8.49578327]
[1747218715260,5.53771181,180.58,180.53,26.0]
[1747218715461,5.53771181,180.58,180.55,8.49578327]
[1747218715844,38.03089187,180.59,180.56,8.49578327]
[1747218716068,38.03089187,180.59,180.55,8.49578327]
[1747218716268,38.03089187,180.59,180.56,8.49578327]
[1747218716481,38.03089187,180.59,180.53,26.0]
[1747218716482,38.03089187,180.59,180.55,8.49578327]
[1747218716967,18.64964886,180.58,180.55,8.49578327]
[1747218717155,18.64964886,180.58,180.54,8.49578327]
[1747218717557,27.14543213,180.58,180.53,8.49578327]
[1747218717865,5.53801849,180.57,180.53,8.49578327]
[1747218718875,5.53801849,180.57,180.51,26.0]
[1747218719057,5.53801849,180.57,180.53,8.49578327]
[1747218719264,19.38306473,180.57,180.51,26.0]
[1747218719470,19.38306473,180.57,180.53,8.49578327]
[1747218719652,27.14543213,180.56,180.51,8.49578327]
[1747218720173,8.49578327,180.55,180.5,8.49578327]
[1747218720360,18.64964886,180.54,180.48,26.0]
[1747218720568,19.38306473,180.57,180.52,8.49578327]
[1747218720773,5.53801849,180.57,180.55,8.49578327]
[1747218720946,5.53801849,180.57,180.56,8.49578327]
[1747218721144,5.53740517,180.59,180.56,8.49578327]
[1747218722304,38.03056695,180.59,180.55,8.49578327]
[1747218722446,24.18705403,180.59,180.56,8.49578327]
[1747218723072,24.18705403,180.59,180.55,8.49578327]
[1747218724959,18.64964886,180.58,180.54,8.49578327]
[1747218725164,27.14543213,180.58,180.54,8.49578327]
[1747218725457,5.53801849,180.57,180.53,8.49578327]
[1747218725659,5.53801849,180.57,180.51,26.0]
[1747218725876,5.53801849,180.57,180.54,8.49578327]
[1747218726879,5.53801849,180.57,180.55,8.49578327]
[1747218727492,5.53801849,180.57,180.56,8.49578327]
[1747218727969,5.53740517,180.59,180.56,8.49578327]